Workbook

Sheet 例題11d 単蒸留
A1: No. | B1: 1 | J1: 気液平衡 | Q1: <COCO_11c_SimpleDistill
A2: β= | B2: x= | J2: 低沸点成分(1) | K2: エタノール
A3: 0.5 | B3: 0.0070019536 | J3: 高沸点成分(2) | K3: 水 | R3: L | S3: V | T3: vapor fraction
B4: x'= | J4: van Laar定数 | Q4: 0.1 | R4: 0.9 | S4: 0.1 | T4: =S4/(R4+S4) -> 0.1
A5: Diff eq→ | B5: =-(K35-B3)/(1-A3) -> -0.1363274709 | J5: A12 | K5: 0.7292 | Q5: 0.2 | R5: 0.8 | S5: 0.1 | T5: =S5/(R5+S5) -> 0.1111111111
J6: A21 | K6: 0.4104 | Q6: 0.3 | R6: 0.7 | S6: 0.1 | T6: =S6/(R6+S6) -> 0.125
A7: Sectionβ=[a, | B7: 0 | J7: Antoine定数(mmHg) | Q7: 0.4 | R7: 0.6 | S7: 0.1 | T7: 0.1428571429
A8: b] | B8: 0.5 | J8: A1 | K8: 8.04494 | Q8: 0.5 | R8: 0.5 | S8: 0.1 | T8: 0.1666666667
A9: Division | B9: 0.05 | J9: B1 | K9: 1554.3
A10: Results | J10: C1 | K10: 222.65
A11: β | B11: x | D11: y | E11: xD | J11: A2 | K11: 7.96681
A12: 0 | B12: 0.2 | C12: ←初期値 | D12: 0.5345 | J12: B2 | K12: 1668.21 | Q12: L | R12: β | S12: x | T12: y | U12: xD
A13: 0.05 | B13: 0.18267273 | D13: 0.524 | E13: =($B$12-(1-A13)*B13)/A13 -> 0.5292181309 | J13: C2 | K13: 228 | R13: 0 | S13: 0.166 | T13: 0.505
A14: 0.1 | B14: 0.1640951208 | D14: 0.51 | E14: =($B$12-(1-A14)*B14)/A14 -> 0.5231439124 | P14: 1 | Q14: 0.9 | R14: =1-Q14/1 -> 0.1 | S14: 0.166 | T14: 0.505
A15: 0.15 | B15: 0.1442219613 | D15: 0.493 | E15: 0.5160755528 | J15: 液組成 x | K15: =B3 -> 0.0070019536 | R15: 0.1 | S15: =S16 -> 0.128 | T15: 0.469 | U15: =U16 -> 0.487
A16: 0.2 | B16: 0.1230777577 | D16: 0.471 | E16: 0.5076889692 | J16: 全圧[kPa] | K16: 101.3 | P16: 2 | Q16: 0.8 | R16: =1-Q16/1 -> 0.2 | S16: 0.128 | T16: 0.469 | U16: =0.1*SUM(T13:T16)/2/R16 -> 0.487
A17: 0.25 | B17: 0.100828187 | D17: 0.441 | E17: 0.4975154389 | J17: 活量係数γ1 | K17: =10^(K5/(1+K15*K5/(1-K15)/K6)^2) -> 5.143582531 | R17: 0.2 | S17: =S18 -> 0.088 | T17: 0.41 | U17: =U18 -> 0.4613333333
A18: 0.3 | B18: 0.0779108006 | D18: 0.4 | E18: 0.4848747986 | J18: 活量係数γ2 | K18: =10^(K6/(1+(1-K15)*K6/K15/K5)^2) -> 1.000144697 | P18: 3 | Q18: 0.7 | R18: =1-Q18/1 -> 0.3 | S18: 0.088 | T18: 0.41 | U18: =0.1*SUM(T13:T18)/2/R18 -> 0.4613333333
A19: 0.35 | B19: 0.05525398165 | D19: 0.3419 | E19: 0.4688140341 | J19: t1 | K19: =K9/(K8-LOG(760))-K10 -> 78.33023892 | R19: 0.3 | S19: =S20 -> 0.05 | T19: 0.314 | U19: =U20 -> 0.4245
A20: 0.4 | B20: 0.03454155592 | D20: 0.2621 | E20: 0.4481876661 | J20: p*1 | K20: =10^(K8-K9/(K19+K10))*(101.3/760) -> 101.3 | P20: 4 | Q20: 0.6 | R20: =1-Q20/1 -> 0.4 | S20: 0.05 | T20: 0.314 | U20: =0.1*SUM(T13:T20)/2/R20 -> 0.4245
A21: 0.45 | B21: 0.01812793905 | D21: 0.167 | E21: 0.4222880745 | J21: p*2 | K21: =10^(K11-K12/(K19+K13))*(101.3/760) -> 44.24012533 | R21: 0.4 | S21: =S22 -> 0.022 | T21: 0.188 | U21: =U22 -> 0.3772
A22: 0.5 | B22: 0.007746426169 | D22: 0.0818 | E22: 0.3922535738 | J22: 蒸気圧(t1) | K22: =K20*K17*K15+K21*K18*(1-K15) -> 47.58504691 | P22: 5 | Q22: 0.5 | R22: =1-Q22/1 -> 0.5 | S22: 0.022 | T22: 0.188 | U22: =0.1*SUM(T13:T22)/2/R22 -> 0.3772
J23: t2 | K23: =(K19+K27)/2 -> 89.16543191
J24: p*1 | K24: =10^(K8-K9/(K23+K10))*(101.3/760) -> 153.1286046
J25: p*2 | K25: =10^(K11-K12/(K23+K13))*(101.3/760) -> 67.89825754
J26: 蒸気圧(t2) | K26: =K24*K17*K15+K25*K18*(1-K15) -> 72.94753901
J27: t3 | K27: =K12/(K11-LOG(760))-K13 -> 100.0006249
J28: p*1 | K28: =10^(K8-K9/(K27+K10))*(101.3/760) -> 225.1390874
J29: p*2 | K29: =10^(K11-K12/(K27+K13))*(101.3/760) -> 101.3
J30: 蒸気圧(t3) | K30: =K28*K17*K15+K29*K18*(1-K15) -> 108.7136699
J31: 沸点[℃] | K31: =K19*(K16-K26)*(K16-K30)/(K22-K26)/(K22-K30)+K23*(K16-K22)*(K16-K30)/(K26-K22)/(K26-K30)+K27*(K16-K22)*(K16-K26)/(K30-K22)/(K30-K26) -> 98.18199047
J32: Tb | K32: =K31 -> 98.18199047
J33: p*1[kPa] | K33: =10^(K8-K9/(K32+K10))*(101.3/760) -> 211.4190647
J34: p*2[kPa] | K34: =10^(K11-K12/(K32+K13))*(101.3/760) -> 94.89697465
J35: y | K35: =K33*K17*K15/K16 -> 0.07516568906
